bitfinex/quotes_BTCUSD_20251224
["timestamp","ask_amount","ask_price","bid_price","bid_amount"]
[1766537307188,0.01141865,87576.0,87566.0,0.11382]
[1766537307379,0.01144,87574.0,87566.0,0.12523995]
[1766537307795,0.01144,87574.0,87567.0,0.01141982]
[1766537308167,0.02285891,87574.0,87566.0,0.01141995]
[1766537308354,0.01141904,87573.0,87563.0,0.0685215]
[1766537308556,0.01141904,87573.0,87563.0,0.01142034]
[1766537308557,0.12955917,87572.0,87563.0,0.01142034]
[1766537309591,0.12955917,87572.0,87565.0,0.01142008]
[1766537309592,0.11814,87572.0,87565.0,0.01142008]
[1766537310351,0.11814,87572.0,87566.0,0.01141995]
[1766537310680,0.11814,87572.0,87567.0,0.01141982]
[1766537311036,0.11814,87572.0,87566.0,0.01141995]
[1766537311247,0.117591,87572.0,87567.0,0.01141982]
[1766537311651,0.117591,87572.0,87568.0,0.01141969]
[1766537311853,0.117591,87572.0,87565.0,0.01142008]
[1766537312073,0.117591,87572.0,87564.0,0.01142021]
[1766537312275,0.01144,87573.0,87565.0,0.01142008]
[1766537312773,0.01144,87573.0,87564.0,0.12847021]
[1766537312774,0.02285904,87573.0,87564.0,0.12847021]
[1766537313562,0.0114193,87571.0,87560.0,0.01142074]
[1766537313779,0.12955943,87570.0,87560.0,0.01142074]
[1766537313999,0.12955943,87570.0,87561.0,0.0114206]
[1766537314193,0.11814,87570.0,87562.0,0.01142047]
[1766537314763,0.11814,87570.0,87563.0,0.01142034]
[1766537315384,0.11814,87570.0,87562.0,0.02286047]
[1766537315583,0.12955943,87570.0,87562.0,0.01144]
[1766537315771,0.11814,87570.0,87563.0,0.01142034]
[1766537315966,0.11814,87570.0,87562.0,0.02286047]
[1766537316335,0.12955943,87570.0,87562.0,0.01142047]
[1766537316557,0.11814,87570.0,87562.0,0.02286047]
[1766537316886,0.12955943,87570.0,87562.0,0.02286047]
[1766537317065,0.11814,87570.0,87562.0,0.02286047]
[1766537317840,0.11757,87578.0,87563.0,0.01142034]
[1766537318048,0.05730263,87650.0,87562.0,0.01144]
[1766537318049,0.03075265,87590.0,87576.0,0.11992]
[1766537318261,0.05708661,87587.0,87576.0,0.13133865]
[1766537318463,0.01141734,87586.0,87576.0,0.13133865]
[1766537318615,0.01141734,87586.0,87576.0,0.11992]
[1766537318817,0.01141761,87584.0,87576.0,0.11992]
[1766537319072,0.05708992,87582.0,87576.0,0.11992]
[1766537319222,0.01141813,87580.0,87575.0,0.01144]
[1766537319431,0.011418,87581.0,87575.0,0.01144]
[1766537319641,0.01141813,87580.0,87575.0,0.01144]
[1766537319899,0.011418,87581.0,87575.0,0.01144]
[1766537320119,0.011418,87581.0,87568.0,0.01151969]
[1766537320120,0.12898839,87578.0,87568.0,0.01151969]
[1766537320288,0.11757,87576.0,87569.0,0.01144]
[1766537320696,0.11757,87576.0,87569.0,0.02285956]
[1766537321279,0.11757,87576.0,87569.0,0.01144]
[1766537322457,0.011418,87581.0,87572.0,0.01141917]
[1766537322657,0.011418,87581.0,87576.0,0.00055]
[1766537323087,0.01141787,87582.0,87572.0,0.01141917]
[1766537323088,0.01141787,87582.0,87573.0,0.01141904]
[1766537323458,0.19978596,87583.0,87575.0,0.01141878]
[1766537323459,0.11757,87583.0,87575.0,0.01141878]
[1766537324063,0.12898774,87583.0,87574.0,0.01141891]
[1766537324444,0.06852714,87586.0,87572.0,0.01144]
[1766537324445,0.18608059,87578.0,87572.0,0.01144]
[1766537324645,0.01141852,87577.0,87572.0,0.01144]
[1766537324851,0.01141787,87582.0,87572.0,0.01144]
[1766537325096,0.01141813,87580.0,87572.0,0.01144]
[1766537325293,0.01141826,87579.0,87572.0,0.01144]
[1766537325611,0.01141852,87577.0,87572.0,0.01144]
[1766537326035,0.01141839,87578.0,87572.0,0.01144]
[1766537327166,0.05709326,87576.0,87572.0,0.01144]
[1766537327352,0.0570951,87574.0,87572.0,0.01144]
[1766537327555,0.01141917,87572.0,87569.0,0.01144]
[1766537328070,0.01141904,87573.0,87569.0,0.01144]
[1766537328486,0.01141917,87572.0,87569.0,0.01144]
[1766537328985,0.01141917,87572.0,87570.0,0.01144]
[1766537329224,0.01141917,87572.0,87566.0,0.01144]
[1766537329225,0.01141943,87570.0,87566.0,0.01144]
[1766537329596,0.01141904,87573.0,87566.0,0.01144]
[1766537330203,0.01141878,87575.0,87566.0,0.13136]
[1766537330402,0.01141865,87576.0,87569.0,0.11992]
[1766537330582,0.01141904,87573.0,87569.0,0.11992]
[1766537331394,0.01141891,87574.0,87569.0,0.11992]
[1766537331594,0.01141891,87574.0,87566.0,0.01144]
[1766537331789,0.01141917,87572.0,87566.0,0.01144]
[1766537332021,0.12898943,87570.0,87566.0,0.00010218]
[1766537332230,0.12898943,87570.0,87566.0,2.18e-06]
[1766537332429,0.01141956,87569.0,87566.0,2.18e-06]
[1766537332733,0.01141956,87569.0,87557.0,0.01152113]
[1766537332734,0.01141995,87566.0,87557.0,0.0001]
[1766537332935,0.18608921,87567.0,87560.0,0.01144]
[1766537333165,0.11757,87567.0,87560.0,0.01144]
[1766537334557,0.12898982,87567.0,87560.0,0.01144]
[1766537335129,0.01141995,87566.0,87560.0,0.01144]
[1766537335324,0.01142008,87565.0,87560.0,0.01144]
[1766537335557,0.01141995,87566.0,87560.0,0.01144]
[1766537336015,0.01142047,87562.0,87558.0,0.0001]
[1766537336187,0.01142047,87562.0,87557.0,0.0001]
[1766537336188,0.11923362,87562.0,87557.0,0.0001]
[1766537336548,0.10781315,87562.0,87557.0,0.0001]
[1766537337002,0.11923362,87562.0,87557.0,0.0001]
[1766537337161,0.10781315,87562.0,87557.0,0.0001]
[1766537337369,0.01142034,87563.0,87557.0,0.0001]
[1766537337749,0.01142021,87564.0,87557.0,0.0001]
[1766537338129,0.05709946,87567.0,87557.0,0.11543]
[1766537338284,0.01141982,87567.0,87564.0,0.000549]
[1766537338607,0.01141969,87568.0,87558.0,0.126751]
[1766537338751,0.01141982,87567.0,87558.0,0.126751]
[1766537339153,0.01142021,87564.0,87558.0,0.11533]
[1766537339393,0.01142008,87565.0,87558.0,0.11533]
[1766537339964,0.01141995,87566.0,87558.0,0.11533]
[1766537341659,0.01142008,87565.0,87558.0,0.11533]
[1766537343701,0.01142021,87564.0,87558.0,0.11533]
[1766537343910,0.01142047,87562.0,87558.0,0.11533]
[1766537344108,0.06852053,87565.0,87562.0,0.000549]
[1766537344370,0.01142008,87565.0,87562.0,0.000549]
[1766537344670,0.01141995,87566.0,87557.0,0.12685113]
[1766537345003,0.01144,87577.0,87569.0,0.11533]
[1766537345374,0.02285852,87577.0,87569.0,0.11533]
[1766537346190,0.01141865,87576.0,87569.0,0.11533]
[1766537347532,0.01151815,87577.0,87569.0,0.11533]
[1766537347734,0.01141865,87576.0,87569.0,0.11533]
[1766537348483,0.01141904,87573.0,87565.0,0.01144]
[1766537348703,0.01141917,87572.0,87565.0,0.01144]
[1766537348919,0.01141891,87574.0,87565.0,0.01144]
[1766537349509,0.01141891,87574.0,87565.0,0.12677]
[1766537350997,0.01141904,87573.0,87565.0,0.12677]
[1766537351190,0.01141878,87575.0,87565.0,0.13819008]
[1766537351401,0.01141878,87575.0,87573.0,0.000549]
[1766537351896,0.01141891,87574.0,87565.0,0.13819008]
[1766537352849,0.01141878,87575.0,87566.0,0.01141995]
[1766537353171,0.01141878,87575.0,87566.0,0.12674995]
[1766537354313,0.01141878,87575.0,87567.0,0.01141982]
[1766537354491,0.06851256,87576.0,87566.0,0.12674995]
[1766537354923,0.01141878,87575.0,87566.0,0.12674995]
[1766537357522,0.01141878,87575.0,87567.0,0.01141982]
[1766537358364,0.01141917,87572.0,87566.0,0.11533]
[1766537358591,0.01141956,87569.0,87566.0,0.11533]
[1766537358732,0.01141904,87573.0,87566.0,0.11533]
[1766537358936,0.0114193,87571.0,87566.0,0.11533]
[1766537359934,0.06851558,87572.0,87566.0,0.11533]
[1766537360134,0.01141917,87572.0,87566.0,0.11533]
[1766537363767,0.01141969,87568.0,87565.0,0.01144]
[1766537363974,0.01141956,87569.0,87565.0,0.01144]
[1766537364247,0.01141943,87570.0,87565.0,0.01144]
[1766537364697,0.0114193,87571.0,87565.0,0.01144]
[1766537365390,0.01141917,87572.0,87565.0,0.01144]
[1766537366163,0.0114193,87571.0,87565.0,0.01144]
[1766537367653,0.01141917,87572.0,87565.0,0.01144]
[1766537368536,0.01141878,87575.0,87565.0,0.01144]
[1766537368537,0.01141878,87575.0,87566.0,0.11948]
[1766537368737,0.05709498,87574.0,87572.0,0.000549]
[1766537368966,0.01141904,87573.0,87566.0,0.11948]
[1766537369991,0.01141891,87574.0,87566.0,0.11948]
[1766537370935,0.06851317,87575.0,87566.0,0.11948]
[1766537371138,0.01141891,87574.0,87566.0,0.11948]
[1766537371295,0.01141878,87575.0,87567.0,0.01141982]
[1766537371480,0.01141878,87575.0,87566.0,0.11948]
[1766537371674,0.01141878,87575.0,87566.0,0.13089995]
[1766537372428,0.01141904,87573.0,87566.0,0.11948]
[1766537372829,0.01141917,87572.0,87566.0,0.11948]
[1766537373395,0.01141943,87570.0,87566.0,0.11948]
[1766537374132,0.01141956,87569.0,87565.0,0.01144]
[1766537376414,0.0114193,87571.0,87569.0,0.000549]
[1766537376614,0.00866042,87569.0,87565.0,0.01144]
[1766537376790,0.01141943,87570.0,87565.0,0.01144]
[1766537381588,0.01141878,87575.0,87570.0,0.001099]
[1766537381777,0.01141878,87575.0,87566.0,0.12346]
[1766537382132,0.01141878,87575.0,87566.0,0.13487995]
[1766537382338,0.01141891,87574.0,87566.0,0.12346]
[1766537382539,0.01141904,87573.0,87566.0,0.12346]
[1766537384146,0.01141891,87574.0,87566.0,0.12346]
[1766537384344,0.01141904,87573.0,87566.0,0.12346]
[1766537384786,0.01141943,87570.0,87565.0,0.01144]
[1766537385099,0.0114193,87571.0,87565.0,0.01144]
[1766537385665,0.01141956,87569.0,87565.0,0.01144]
[1766537385880,0.01141969,87568.0,87565.0,0.01144]
[1766537386692,0.01141917,87572.0,87568.0,0.000549]
[1766537386886,0.01141904,87573.0,87568.0,0.000549]
[1766537387448,0.01141891,87574.0,87565.0,0.14632008]
[1766537387591,0.01141865,87576.0,87566.0,0.01141995]
[1766537388221,0.01141878,87575.0,87567.0,0.01141982]
[1766537388598,0.01141865,87576.0,87567.0,0.01141982]
[1766537389432,0.12522865,87576.0,87567.0,0.01141982]
[1766537389648,0.12522865,87576.0,87568.0,0.01141969]
[1766537390207,0.12522865,87576.0,87567.0,0.01141982]
[1766537390406,0.11381,87576.0,87568.0,0.01141969]
[1766537395153,0.12522865,87576.0,87567.0,0.01141982]
[1766537397166,0.11381,87576.0,87568.0,0.01141969]
[1766537398749,0.11381,87576.0,87570.0,0.01141943]
[1766537398926,0.12522865,87576.0,87566.0,0.01141995]
[1766537399130,0.01141878,87575.0,87565.0,0.14632008]
[1766537399328,0.17223491,87574.0,87565.0,0.01144]
[1766537399530,0.01141943,87570.0,87565.0,0.01144]
[1766537399741,0.11514,87569.0,87565.0,0.01144]
[1766537399947,0.11514,87569.0,87562.0,0.01144]
[1766537400370,0.18365752,87569.0,87559.0,0.0001]
[1766537400574,0.11514,87562.0,87557.0,0.0001]
[1766537400782,0.11514,87562.0,87549.0,0.01142217]
[1766537400783,0.11514,87559.0,87549.0,0.01142217]
[1766537400995,0.01142126,87556.0,87551.0,0.01144]
[1766537401203,0.12656113,87557.0,87551.0,0.01144]
[1766537401414,0.23984071,87566.0,87551.0,0.01144]
[1766537401415,0.22836467,87580.0,87558.0,0.12309]
[1766537401623,0.12655761,87584.0,87572.0,0.12309]
[1766537401925,0.0001,87588.0,87569.0,0.43415402]
[1766537401926,0.01144,87585.0,87575.0,0.12309]
[1766537402131,0.01151708,87588.0,87575.0,0.12309]
[1766537402132,0.0001,87588.0,87582.0,0.01141787]
[1766537402374,0.05709591,87597.0,87582.0,0.01141787]
[1766537402375,0.0114163,87594.0,87588.0,0.0001]
[1766537402584,0.01141617,87595.0,87589.0,0.12309]
[1766537402788,0.0114163,87594.0,87589.0,0.12309]
[1766537403130,0.01141643,87593.0,87589.0,0.12309]
[1766537403334,0.01144,87597.0,87589.0,0.12309]
[1766537403541,0.01154,87605.0,87598.0,0.12309]
[1766537403748,0.0001,87605.0,87599.0,0.01370904]
[1766537403955,0.01151487,87605.0,87599.0,0.01370904]
[1766537404398,0.011415,87604.0,87599.0,0.01370904]
[1766537404590,0.01151487,87605.0,87599.0,0.13679904]
[1766537404806,0.01141513,87603.0,87599.0,0.13679904]
[1766537405592,0.01151487,87605.0,87599.0,0.13679904]
[1766537405797,0.01141526,87602.0,87590.0,0.13453]
[1766537406002,0.01141578,87598.0,87591.0,0.01144]
[1766537406224,0.01141591,87597.0,87591.0,0.01144]
[1766537406431,0.01141578,87598.0,87591.0,0.01144]
[1766537406633,0.01141656,87592.0,87582.0,0.12309]
[1766537406833,0.01141721,87587.0,87583.0,0.01144]
[1766537407007,0.01141734,87586.0,87582.0,0.13453]
[1766537407205,0.01141721,87587.0,87582.0,0.13453]
[1766537407348,0.01141669,87591.0,87582.0,0.13453]
[1766537407548,0.01141695,87589.0,87582.0,0.13453]
[1766537408191,0.01141708,87588.0,87582.0,0.12309]
[1766537408358,0.01141708,87588.0,87583.0,0.01144]
[1766537408963,0.01141708,87588.0,87582.0,0.12309]
[1766537409176,0.01141708,87588.0,87583.0,0.01144]
[1766537409607,0.01141708,87588.0,87582.0,0.12309]
[1766537409847,0.01141695,87589.0,87583.0,0.13453]
[1766537410083,0.01141669,87591.0,87583.0,0.13453]
[1766537410540,0.01141682,87590.0,87583.0,0.13453]
[1766537411189,0.01141721,87587.0,87583.0,0.13453]
[1766537411393,0.01141708,87588.0,87583.0,0.13453]
[1766537411600,0.01141695,87589.0,87583.0,0.13453]
[1766537411801,0.01141708,87588.0,87583.0,0.13453]
[1766537412026,0.11514,87580.0,87571.0,0.02512834]
[1766537412239,0.01141852,87577.0,87572.0,0.01144]
[1766537412394,0.12655839,87578.0,87577.0,0.000549]
[1766537412395,0.11514,87578.0,87577.0,0.000549]
[1766537412602,0.011418,87581.0,87577.0,0.000549]
[1766537412804,0.011418,87581.0,87572.0,0.01144]
[1766537413178,0.011418,87581.0,87572.0,0.02285917]
[1766537413397,0.01141813,87580.0,87572.0,0.01144]
[1766537413877,0.01141852,87577.0,87573.0,0.01144]
[1766537414314,0.12655826,87579.0,87571.0,0.01370904]
[1766537414533,0.12655826,87579.0,87573.0,0.01144]
[1766537415348,0.11514,87579.0,87573.0,0.01144]
[1766537415771,0.12655826,87579.0,87573.0,0.01144]
[1766537416063,0.01141839,87578.0,87573.0,0.01144]
[1766537416307,0.18365113,87577.0,87563.0,0.01142034]
[1766537416514,0.18365113,87577.0,87569.0,0.01370904]
[1766537416515,0.01141878,87575.0,87569.0,0.01370904]
[1766537416922,0.11514,87575.0,87569.0,0.0251286]
[1766537417291,0.11514,87575.0,87570.0,0.01141943]
[1766537417557,0.11514,87575.0,87569.0,0.0251286]
[1766537418199,0.11514,87575.0,87569.0,0.01370904]
[1766537418415,0.12655878,87575.0,87569.0,0.01370904]
[1766537418814,0.01141891,87574.0,87569.0,0.01370904]
[1766537418984,0.12655878,87575.0,87569.0,0.01370904]
[1766537419585,0.01141891,87574.0,87569.0,0.01370904]
[1766537419929,0.12655878,87575.0,87569.0,0.01370904]
[1766537420090,0.06851348,87574.0,87569.0,0.01370904]
[1766537420484,0.11514,87575.0,87569.0,0.01370904]
[1766537420889,0.11514,87575.0,87570.0,0.01141943]
[1766537421298,0.12658,87583.0,87573.0,0.01141904]
[1766537421689,0.12658,87583.0,87574.0,0.01141891]
[1766537422049,0.22833537,87591.0,87573.0,0.01141904]
[1766537422050,0.01141617,87595.0,87583.0,0.00055]
[1766537422248,0.11514,87603.0,87583.0,0.00055]
[1766537422249,0.01144,87600.0,87589.0,0.12309]
[1766537422404,0.02285552,87600.0,87591.0,0.01141669]
[1766537422610,0.13799552,87600.0,87590.0,0.01141682]
[1766537422814,0.12655565,87599.0,87589.0,0.13450695]
[1766537423015,0.01141591,87597.0,87589.0,0.01141695]
[1766537423216,0.00035723,87597.0,87590.0,0.01141682]
[1766537423420,0.00035723,87597.0,87589.0,0.01141695]
[1766537423622,0.00035723,87597.0,87591.0,0.01141669]
[1766537423842,0.11514,87606.0,87597.0,0.01141591]
[1766537424037,0.13799474,87606.0,87597.0,0.000357]
[1766537424243,0.12658,87606.0,87596.0,0.01141604]
[1766537424457,0.13799474,87606.0,87597.0,0.01141591]
[1766537424851,0.12658,87606.0,87598.0,0.01141578]
[1766537425049,0.12658,87606.0,87600.0,0.01141552]
[1766537425260,0.12658,87606.0,87601.0,0.01141539]
[1766537425658,0.12658,87606.0,87600.0,0.01141552]
[1766537426064,0.12658,87606.0,87601.0,0.01141539]
[1766537426268,0.01144,87606.0,87605.0,0.0001]
[1766537426584,0.01141383,87613.0,87606.0,0.00045]
[1766537426760,0.01144,87612.0,87606.0,0.00029717]
[1766537426959,0.02285396,87612.0,87603.0,0.01141513]
[1766537427164,0.01141383,87613.0,87603.0,0.01141513]
[1766537427330,0.1337137,87614.0,87605.0,0.01141487]
[1766537427331,0.1223,87614.0,87605.0,0.01141487]
[1766537427532,0.1223,87614.0,87609.0,0.01141435]
[1766537427757,0.1223,87614.0,87607.0,0.01141461]
[1766537428408,0.1223,87614.0,87606.0,0.01141474]
[1766537428943,0.1223,87614.0,87607.0,0.01141461]
[1766537429580,0.1223,87614.0,87606.0,0.01141474]
[1766537430020,0.1223,87614.0,87607.0,0.01141461]
[1766537430215,0.01141357,87615.0,87600.0,0.01141552]
[1766537430390,0.01141487,87605.0,87597.0,0.01141591]
[1766537430605,0.01168982,87617.0,87597.0,0.01141591]
[1766537430606,0.1136,87607.0,87600.0,0.01144]
[1766537431134,0.1136,87607.0,87601.0,0.01141539]
[1766537432381,0.1136,87607.0,87600.0,0.01144]
[1766537433032,0.12501461,87607.0,87600.0,0.01144]
[1766537433572,0.011415,87604.0,87600.0,0.011288]
[1766537433774,0.12501513,87603.0,87598.0,0.01144]
[1766537434813,0.1136,87603.0,87598.0,0.01144]
[1766537436717,0.12501513,87603.0,87598.0,0.01144]
[1766537436918,0.1136,87603.0,87598.0,0.01144]
[1766537437316,0.1136,87603.0,87565.0,0.60559932]
[1766537437517,0.12501539,87601.0,87591.0,0.01141669]
[1766537437740,0.1136,87601.0,87593.0,0.01141643]
[1766537437919,0.1136,87601.0,87594.0,0.0114163]
[1766537438119,0.1136,87601.0,87594.0,0.0228563]
[1766537438963,0.11415,87594.0,87589.0,0.01144]
[1766537439177,0.1250163,87594.0,87584.0,0.01144]
[1766537439386,0.12501643,87593.0,87584.0,0.02285761]
[1766537439593,0.1136,87593.0,87585.0,0.01141748]
[1766537439765,0.1136,87593.0,87584.0,0.02285761]
[1766537439766,0.12501643,87593.0,87584.0,0.02285761]
[1766537440291,0.1136,87593.0,87585.0,0.01141748]
[1766537440496,0.1136,87593.0,87584.0,0.02285761]
[1766537441049,0.01141656,87592.0,87584.0,0.01144]
[1766537441255,0.01141656,87592.0,87581.0,0.011418]
[1766537441256,0.11693,87591.0,87577.0,0.01141852]
[1766537441623,0.11693,87591.0,87574.0,0.11721]
[1766537441624,0.00055,87584.0,87578.0,0.01144]
[1766537441815,0.01141708,87588.0,87578.0,0.01141839]
[1766537442021,0.01141708,87588.0,87579.0,0.01144]
[1766537442521,0.01141708,87588.0,87579.0,0.02285826]
[1766537442667,0.01141721,87587.0,87579.0,0.01144]
[1766537443091,0.12834721,87587.0,87579.0,0.01144]
[1766537443369,0.12834734,87586.0,87576.0,0.01141865]
[1766537443606,0.11693,87583.0,87576.0,0.01141865]
[1766537444213,0.11693,87583.0,87577.0,0.01141852]
[1766537444616,0.11693,87583.0,87575.0,0.01144]
[1766537444830,0.12834774,87583.0,87575.0,0.02285878]
[1766537445140,0.11693,87583.0,87575.0,0.02285878]
[1766537445330,0.12834774,87583.0,87575.0,0.01144]
[1766537446337,0.12834774,87583.0,87575.0,0.02285878]
[1766537446741,0.12834774,87583.0,87575.0,0.01144]
[1766537447295,0.11693,87583.0,87575.0,0.01144]
[1766537447948,0.11693,87583.0,87575.0,0.02285878]
[1766537448352,0.11693,87583.0,87575.0,0.01144]
[1766537448795,0.00055,87575.0,87567.0,0.01141982]
[1766537449031,0.11693,87577.0,87568.0,0.01141969]
[1766537449268,0.11693,87577.0,87569.0,0.02285956]
[1766537449488,0.12834852,87577.0,87569.0,0.01144]
[1766537449717,0.11693,87577.0,87570.0,0.01141943]
[1766537449927,0.19687676,87583.0,87572.0,0.01141917]
[1766537450480,0.19687676,87583.0,87571.0,0.05709595]
[1766537450481,0.13978774,87583.0,87571.0,0.05709595]
[1766537450689,0.011418,87581.0,87572.0,0.01141917]
[1766537450837,0.01141813,87580.0,87572.0,0.01141917]
[1766537451046,0.01141813,87580.0,87570.0,0.01141943]
[1766537451266,0.01141813,87580.0,87569.0,0.01144]
[1766537451504,0.01141852,87577.0,87569.0,0.01144]
[1766537451893,0.01141839,87578.0,87569.0,0.02285956]
[1766537452263,0.01141852,87577.0,87569.0,0.01144]
[1766537452706,0.01141839,87578.0,87569.0,0.02285956]
[1766537452908,0.01141852,87577.0,87569.0,0.01144]
[1766537453327,0.01141852,87577.0,87569.0,0.02285956]
[1766537453456,0.01141839,87578.0,87569.0,0.02285956]
[1766537453658,0.12834839,87578.0,87569.0,0.02285956]
[1766537453861,0.12834839,87578.0,87570.0,0.01141943]
[1766537454058,0.12834839,87578.0,87569.0,0.02285956]
[1766537454487,0.12834839,87578.0,87570.0,0.01141943]
[1766537454687,0.11693,87578.0,87572.0,0.01141917]
[1766537455120,0.11693,87578.0,87573.0,0.01141904]
[1766537455621,0.11693,87578.0,87572.0,0.01141917]
[1766537455807,0.11693,87578.0,87574.0,0.01141891]
[1766537456022,0.13978774,87583.0,87574.0,0.01141891]
[1766537456225,0.12837,87583.0,87574.0,0.01141891]
[1766537456423,0.01141787,87582.0,87573.0,0.01141904]
[1766537456750,0.13978774,87583.0,87573.0,0.01141904]
[1766537456966,0.01141787,87582.0,87574.0,0.01141891]
[1766537457296,0.13978774,87583.0,87574.0,0.01141891]
[1766537457901,0.13978774,87583.0,87575.0,0.01141878]
[1766537458108,0.13978774,87583.0,87574.0,0.01141891]
[1766537458939,0.12837,87583.0,87575.0,0.01141878]
[1766537459139,0.12837,87583.0,87576.0,0.01141865]
[1766537459362,0.12837,87583.0,87575.0,0.01141878]
[1766537459585,0.12837,87583.0,87577.0,0.01141852]
[1766537460506,0.12837,87583.0,87576.0,0.01141865]
[1766537460722,0.12837,87583.0,87577.0,0.01141852]
[1766537460899,0.12837,87583.0,87576.0,0.01141865]
[1766537461900,0.01144,87583.0,87579.0,0.01141826]
[1766537462197,0.01144,87583.0,87580.0,0.01141813]
[1766537462401,0.01141695,87589.0,87580.0,0.01141813]
[1766537462700,0.01144,87585.0,87577.0,0.06851072]
[1766537463003,0.02285748,87585.0,87576.0,0.11457]
[1766537463155,0.06850614,87584.0,87576.0,0.11457]
[1766537463581,0.01141787,87582.0,87576.0,0.11457]
[1766537463821,0.01141813,87580.0,87574.0,0.01144]
[1766537463977,0.12738813,87580.0,87574.0,0.01144]
[1766537464568,0.11597,87580.0,87574.0,0.01144]
[1766537464768,0.01141813,87580.0,87574.0,0.01144]
[1766537465676,0.011418,87581.0,87574.0,0.01144]
[1766537468573,0.01141839,87578.0,87573.0,0.01144]
[1766537469295,0.01141852,87577.0,87573.0,0.01144]
[1766537469487,0.01141839,87578.0,87573.0,0.01144]
[1766537469681,0.12738852,87577.0,87569.0,0.01144]
[1766537469819,0.01141865,87576.0,87569.0,0.01144]
[1766537470022,0.01141878,87575.0,87569.0,0.01144]
[1766537470478,0.12738852,87577.0,87569.0,0.01144]
[1766537471049,0.01141865,87576.0,87569.0,0.01144]
[1766537472758,0.12738852,87577.0,87569.0,0.01144]
[1766537474325,0.11597,87577.0,87569.0,0.02285956]
[1766537474521,0.11597,87577.0,87569.0,0.01144]
[1766537474844,0.11597,87577.0,87570.0,0.01141943]
[1766537475268,0.11597,87577.0,87569.0,0.02285956]
[1766537475873,0.01141878,87575.0,87569.0,0.01144]
[1766537476328,0.01141865,87576.0,87569.0,0.01144]
[1766537476756,0.01141878,87575.0,87569.0,0.01144]
[1766537476959,0.01141865,87576.0,87569.0,0.01144]
[1766537478681,0.01141878,87575.0,87569.0,0.01144]
[1766537479825,0.01141865,87576.0,87569.0,0.01144]
[1766537480204,0.01141878,87575.0,87569.0,0.01144]
[1766537481254,0.06851163,87577.0,87569.0,0.01144]
[1766537481459,0.011418,87581.0,87570.0,0.18308657]
[1766537481685,0.02285813,87580.0,87571.0,0.1259893]
[1766537481901,0.01144,87580.0,87572.0,0.01141917]
[1766537482101,0.01141826,87579.0,87571.0,0.11457]
[1766537482665,0.01141839,87578.0,87571.0,0.11457]
[1766537483069,0.01141865,87576.0,87571.0,0.11457]
[1766537483505,0.01141878,87575.0,87571.0,0.11457]
[1766537483842,0.01141891,87574.0,87571.0,0.11457]
[1766537484379,0.01141865,87576.0,87571.0,0.11457]
[1766537485030,0.01141878,87575.0,87571.0,0.11457]
[1766537485337,0.01141865,87576.0,87571.0,0.11457]
[1766537486214,0.01141878,87575.0,87571.0,0.11457]
[1766537486372,0.01141904,87573.0,87569.0,0.01144]
[1766537486574,0.01141891,87574.0,87569.0,0.01144]
[1766537487609,0.01141904,87573.0,87569.0,0.01144]
[1766537487785,0.01141904,87573.0,87569.0,0.00532346]
[1766537488142,0.01141917,87572.0,87569.0,0.00532346]
[1766537488352,0.01141956,87569.0,87565.0,0.01154]
[1766537488501,0.11897,87569.0,87565.0,0.0001]
[1766537488703,0.01141982,87567.0,87561.0,0.01144]
[1766537488921,0.11897,87568.0,87561.0,0.01144]
[1766537489728,0.13038969,87568.0,87561.0,0.01144]
[1766537490090,0.11897,87568.0,87561.0,0.01144]
[1766537490480,0.01141982,87567.0,87559.0,0.0001]
[1766537490777,0.01142034,87563.0,87559.0,0.0001]
[1766537491186,0.01142034,87563.0,87554.0,0.01142152]
[1766537491187,0.13039034,87563.0,87554.0,0.01142152]
[1766537491336,0.11897,87563.0,87554.0,0.01142152]
[1766537491534,0.13041,87562.0,87554.0,0.01142152]
[1766537491740,0.13041,87562.0,87555.0,0.01142139]
[1766537493613,0.13041,87562.0,87554.0,0.01142152]
[1766537494666,0.14183047,87562.0,87553.0,0.01142165]
[1766537495278,0.14183047,87562.0,87554.0,0.01142152]
[1766537496005,0.14183047,87562.0,87553.0,0.01142165]
[1766537496886,0.13041,87562.0,87554.0,0.01142152]
[1766537498809,0.14183047,87562.0,87553.0,0.01142165]
[1766537499308,0.0114206,87561.0,87553.0,0.01142165]
[1766537499979,0.14183047,87562.0,87554.0,0.01142152]
[1766537500183,0.14183047,87562.0,87553.0,0.01142165]
[1766537500389,0.13041,87562.0,87556.0,0.01142126]
[1766537500673,0.13041,87562.0,87557.0,0.01142113]
[1766537502240,0.13041,87562.0,87558.0,0.011421]
[1766537502654,0.01144,87562.0,87558.0,0.011421]
[1766537502877,0.010891,87561.0,87558.0,0.011421]
[1766537503080,0.01144,87563.0,87557.0,0.01142113]
[1766537503908,0.01144,87563.0,87554.0,0.01142152]
[1766537503909,0.02286034,87563.0,87554.0,0.01142152]
[1766537504130,0.01142047,87562.0,87553.0,0.01142165]
[1766537504328,0.0114206,87561.0,87552.0,0.19164069]
[1766537504604,0.0114206,87561.0,87552.0,0.12311]
[1766537504958,0.01142047,87562.0,87552.0,0.13453178]
[1766537505689,0.01142047,87562.0,87552.0,0.12311]
[1766537505690,0.01142087,87559.0,87552.0,0.12311]
[1766537505916,0.01142087,87559.0,87547.0,0.01154]
[1766537505917,0.01142126,87556.0,87547.0,0.01154]
[1766537506105,0.01142126,87556.0,87547.0,0.02296243]
[1766537506951,0.01142126,87556.0,87547.0,0.01154]
[1766537506952,0.01142139,87555.0,87547.0,0.01154]
[1766537507338,0.01142139,87555.0,87547.0,0.02296243]
[1766537507510,0.13103139,87555.0,87547.0,0.01154]
[1766537508701,0.01142152,87554.0,87547.0,0.01154]
[1766537509312,0.01142165,87553.0,87547.0,0.01154]
[1766537509705,0.01142152,87554.0,87547.0,0.01154]
[1766537509937,0.11961,87555.0,87547.0,0.01189723]
[1766537510137,0.01144,87558.0,87549.0,0.01142217]
[1766537510686,0.01144,87558.0,87553.0,0.01142165]
[1766537510820,0.04568,87568.0,87558.0,0.00055]
[1766537511177,0.02285982,87567.0,87558.0,0.011421]
[1766537511375,0.01142008,87565.0,87558.0,0.12311]
[1766537513077,0.01142021,87564.0,87558.0,0.12311]
[1766537513262,0.01142008,87565.0,87558.0,0.12311]
[1766537513466,0.13103152,87554.0,87541.0,0.05711574]
[1766537513647,0.13103178,87552.0,87542.0,0.02286308]
[1766537514064,0.13103178,87552.0,87546.0,0.00020711]
[1766537514507,0.11961,87552.0,87546.0,0.00020711]
[1766537514723,0.13103178,87552.0,87546.0,0.00020711]